Cogmind - Beta 15 @@@ ROGUE MODE // 2025.08.05 @ 21:21:40 Player: Btuck Result: Destroyed by UR-LRV(R) with Subdweller Laser Performance ------------- Evolutions (0) 0 Regions Visited (3) 600 Robots Destroyed (24) 120 Value Destroyed (459) 459 Prototype IDs (0) 0 Alien Tech Used (0) 0 Bonus (0) 0 TOTAL SCORE: 1179 Bonus ------- None Cogmind --------- Core Integrity 0/250 Matter 295/300 Energy 100/100 System Corruption 2% Temperature Cool (6) Movement Walking (120) Location -10/Subcaves Parts ------- > --- POWER (1) -------- (None) > --- PROPULSION (2) --- Aluminum Leg Aluminum Leg > --- UTILITY (2) ------ (None) > --- WEAPON (2) ------- Particle Gun Mining Claw > --- INVENTORY (5) ---- (None) Peak State ------------ > --- POWER ------------ Ion Engine > --- PROPULSION ------- Aluminum Leg Aluminum Leg > --- UTILITY ---------- Medium Storage Unit Seismic Detector > --- WEAPON ----------- Particle Gun Assault Rifle > --- INVENTORY -------- Ion Engine Ion Engine Aluminum Leg Aluminum Leg Aluminum Leg Improved Terrain Scanner Weapon Shielding Tractor Beam Particle Gun Mining Claw [Rating: 9] Favorites ----------- Power Ion Engine Engine Ion Engine Propulsion Light Treads Treads Light Treads Leg Aluminum Leg Utility Seismic Detector Device Seismic Detector Storage Medium Storage Unit Weapon Light Assault Rifle Energy Gun Particle Gun Ballistic Gun Light Assault Rifle Slashing Weapon Mining Claw Build | -11 -10 -10 -10 ------- Run | Yrd Mat Min Sub Slots Evolved . | . . . . Power . | . . . . Propulsion . | . . . . Utility . | . . . . Weapon . | . . . . Parts Attached 20 | 7 8 . 5 Power 3 | 1 1 . 1 Engine 3 | 1 1 . 1 Core . | . . . . Reactor . | . . . . Propulsion 6 | 2 2 . 2 Treads 2 | 2 . . . Leg 4 | . 2 . 2 Wheel . | . . . . Hover . | . . . . Flight . | . . . . Utility 4 | 2 2 . . Device 2 | 1 1 . . Storage 2 | 1 1 . . Processor . | . . . . Hackware . | . . . . Protection . | . . . . Artifact . | . . . . Weapon 7 | 2 3 . 2 Energy Gun 2 | . 1 . 1 Energy Cannon . | . . . . Ballistic Gun 4 | 2 2 . . Ballistic Cannon . | . . . . Launcher . | . . . . Special Weapon . | . . . . Impact Weapon . | . . . . Slashing Weapon 1 | . . . 1 Piercing Weapon . | . . . . Special Melee Weapon . | . . . . Unidentified Prototypes . | . . . . Parts Lost 1 | . . . 1 Power 1 | . . . 1 Propulsion . | . . . . Utility . | . . . . Weapon . | . . . . Highest Loss Streak 1 | . . . 1 To Critical Strikes . | . . . . Average Backups 7 | 1 8 9 . Power . | . 1 1 . Propulsion 3 | . 3 2 . Utility 1 | . 2 2 . Weapon 1 | . 1 3 . Tool/Special . | . . . . Unused Backups 8 | . 3 5 . Power 1 | . 1 . . Propulsion 1 | . 1 . . Utility 4 | . 1 3 . Weapon 2 | . . 2 . Tool/Special . | . . . . Average Slot Usage (%) 95 | . 100 90 58 Engine 13 | . 14 12 14 Treads 13 | . 16 . . Leg 14 | . 11 25 26 Device 12 | . 14 12 . Storage 12 | . 14 12 . Energy Gun 6 | . 5 12 13 Ballistic Gun 19 | . 22 12 . Peak Build Rating 9 | 7 9 9 6 Average Rating 7 | 5 8 7 5 On Entrance 4 | . 7 9 . Naked Turns 11 | . . 11 . Heaviest Build 21 | 13 21 21 10 Greatest Support 40 | 40 40 20 20 Greatest Overweight (x) 1 | . 1 1 . Average Overweight (x) . | . . . . Largest Inventory Capacity 10 | 8 10 10 5 Average Capacity 8 | 6 9 9 5 Most Carried 10 | 3 10 10 4 Average Carried 7 | 1 8 9 . Final Capacity 10 | 8 10 5 5 Final Carried 10 | 3 10 5 . Class Distribution -------------------- 100% | Mutant Dominant Class ---------------- Mutant | -10/Materials Mutant | -10/Mines Mutant | -10/Subcaves Resources | -11 -10 -10 -10 ----------- Run | Yrd Mat Min Sub Matter Collected 624 | 298 266 . 60 Remotely . | . . . . Salvage Created 839 | 135 657 . 47 Parts 56 | 8 47 . 1 Haulers Intercepted 2 | . 2 . . Recyclers Shooed 1 | . 1 . . Parts Field Recycled . | . . . . Retrieved Matter . | . . . . Parts Self-Destructed 10 | . . . 10 Prevented . | . . . . Kills | -11 -10 -10 -10 ------- Run | Yrd Mat Min Sub Combat Hostiles Destroyed 15 | . 14 . 1 Guns 15 | . 14 . 1 Classes Destroyed 7 | 2 4 . 1 Tunneler 3 | 3 . . . Hauler 2 | . 2 . . Recycler 2 | 1 1 . . Watcher 2 | . 2 . . Swarmer 6 | . 6 . . Grunt 8 | . 8 . . Sentry 1 | . . . 1 Best Kill Streak 4 | 3 4 . 1 Combat Bots Only 3 | . 3 . 1 Max Kills in Single Turn 2 | 1 2 . 1 Gunslinging 1 | . 1 . . Exploded . | . . . . Melee . | . . . . Uniques/NPCs Destroyed . | . . . . Combat | -11 -10 -10 -10 -------- Run | Yrd Mat Min Sub Hostile Shots Fired 110 | . 59 36 15 Missed 32 | . 16 14 2 Hits 78 | . 43 22 13 Projectile 78 | . 43 22 13 AOE 2 | . . 2 . Critical Strikes 1 | . . 1 . Damage Taken 932 | . 424 318 190 Core 256 | . 87 146 23 Absorbed by Shields . | . . . . Core Remaining (%) 100 | 100 . . . Volleys Fired 103 | 15 78 1 9 Largest 2 | 2 2 2 1 Hottest 85 | 40 85 85 65 Shots Fired 169 | 28 130 2 9 Gun 169 | 28 130 2 9 Cannon . | . . . . Launcher . | . . . . Special . | . . . . Kinetic 155 | 28 126 1 . Thermal 14 | . 4 1 9 Explosive . | . . . . Electromagnetic . | . . . . Robot Hit Streak 24 | 10 24 . 3 Robot Miss Streak 4 | 2 4 3 1 Penetration Max . | . . . . Secondary Targets 1 | . 1 . . Max Gunslinging Chain 1 | . 1 . . Shots Hit Robots 118 | 20 92 . 6 Core Hits 52 | 8 41 . 3 Critical Kills 1 | . 1 . . Critical Parts Destroyed . | . . . . Critical Strikes 1 | . 1 . . Destroy 1 | . 1 . . Melee Attacks 1 | . . . 1 Impact . | . . . . Slashing 1 | . . . 1 Piercing . | . . . . Sneak Attacks . | . . . . Combat Hostiles . | . . . . Follow-up Attacks . | . . . . Damage Inflicted 1053 | 159 797 . 97 Guns 1053 | 159 797 . 97 Cannons . | . . . . Explosions . | . . . . Melee . | . . . . Ramming . | . . . . Kinetic 927 | 159 768 . . Thermal 126 | . 29 . 97 Explosive . | . . . . Electromagnetic . | . . . . Impact . | . . . . Slashing . | . . . . Piercing . | . . . . Highest Corruption 2 | . 2 2 2 Average Corruption 2 | . 2 2 2 Corruption Purged . | . . . . Corruption Blocked . | . . . . Effects 22 | . 18 1 3 Message Errors 5 | . 5 . . Matter Fused 7 | . 4 . 3 Heat Flow Errors 3 | . 2 1 . Energy Discharges 3 | . 3 . . Parts Rejected 1 | . 1 . . Data Loss (minor) 1 | . 1 . . Alerts 2 | . 2 . . Overload Shots . | . . . . Overflow Damage . | . . . . Projectiles . | . . . . Explosions . | . . . . Melee . | . . . . Knockbacks . | . . . . Impact . | . . . . Kinetic . | . . . . Secondary . | . . . . Self-Inflicted Damage . | . . . . Shots . | . . . . Rammed 2 | . 2 . . Targets Rammed 2 | . 2 . . Kicked . | . . . . Crushed . | . . . . Highest Temperature 256 | . 256 211 1 Average Temperature 64 | . 57 103 1 Received Heat Transfer 321 | . 144 120 57 Effects 1 | . 1 . . Interference 1 | . 1 . . Siege Activations . | . . . . Martial Activations . | . . . . Shielding Activations . | . . . . Robots Disrupted . | . . . . Combat Hostiles . | . . . . Robots Corrupted . | . . . . Combat Hostiles . | . . . . Parts Fried . | . . . . Impact Corruptions . | . . . . Robots Melted . | . . . . Combat Hostiles . | . . . . Parts Melted . | . . . . Heat Transferred 296 | . 74 . 222 Parts Sabotaged . | . . . . Parts Stolen . | . . . . Parts Stripped . | . . . . Power Chain Reactions . | . . . . Alert | -11 -10 -10 -10 ------- Run | Yrd Mat Min Sub Maximum Alert Level . | . . . . Low Security (%) 100 | 100 100 100 . Level 1 . | . . . . Level 2 . | . . . . Level 3 . | . . . . Level 4 . | . . . . Level 5 . | . . . . High Security . | . . . . Max Security . | . . . . Peak Influence 185 | 10 185 3 . Initial 3 | . . 3 . Average 54 | . 61 . . Influence Increases 476 | 20 436 . 20 Destroy 0b10 Robot/C 300 | . 280 . 20 Destroy 0b10 Robot/NC 45 | 20 25 . . Destroy Leader 58 | . 58 . . Successful Hack 13 | . 13 . . Lose Combat Pursuer 60 | . 60 . . Influence Decreases 476 | 20 427 9 20 Entered New Map 6 | . . 6 . Time Decay 470 | 20 427 3 20 Squads Dispatched 2 | . 2 . . Investigation . | . . . . Extermination . | . . . . Reinforcement 2 | . 2 . . Assault . | . . . . Garrison . | . . . . Intercept . | . . . . Searches Triggered . | . . . . Construction Impeded . | . . . . Haulers Reinforced . | . . . . Active Scanning Responses . | . . . . Cargo Convoy Interrupts . | . . . . Stealth | -11 -10 -10 -10 --------- Run | Yrd Mat Min Sub Distress Signals 1 | . 1 . . Communications Jammed . | . . . . Distress Signals . | . . . . Times Spotted 48 | . 26 20 2 Peak Tracking Total 21 | . 6 21 1 Tactical Retreats 4 | . 3 1 . Traps | -11 -10 -10 -10 ------- Run | Yrd Mat Min Sub Traps Triggered 1 | . 1 . . Indirectly . | . . . . Trap Hack Attempts . | . . . . Triggered . | . . . . Disarmed . | . . . . Reprogrammed . | . . . . Reused . | . . . . Traps Extracted . | . . . . Installed . | . . . . Triggered . | . . . . Machines | -11 -10 -10 -10 ---------- Run | Yrd Mat Min Sub Machines Disabled . | . . . . Max in Single Turn . | . . . . Machines Repaired . | . . . . Machines Dismantled . | . . . . Machines Sabotaged . | . . . . Overloaded Fab Kills . | . . . . Hacking | -11 -10 -10 -10 --------- Run | Yrd Mat Min Sub Machines Accessed 2 | . 2 . . Terminals 2 | . 2 . . Fabricators . | . . . . Repair Stations . | . . . . Recycling Units . | . . . . Scanalyzers . | . . . . Garrison Access . | . . . . Total Hacks 8 | . 8 . . Successful 3 | . 3 . . Failed 5 | . 5 . . Catastrophic . | . . . . Database Lockouts . | . . . . Manual 6 | . 6 . . Terminals 8 | . 8 . . Fabricators . | . . . . Repair Stations . | . . . . Recycling Units . | . . . . Scanalyzers . | . . . . Garrison Access . | . . . . Terminal Hacks 3 | . 3 . . Robot Analysis 1 | . 1 . . Level Access Points 1 | . 1 . . Locate Traps 1 | . 1 . . Fabricator Hacks . | . . . . Repair Station Hacks . | . . . . Recycling Unit Hacks . | . . . . Scanalyzer . | . . . . Garrison Access Hacks . | . . . . Unauthorized Hacks . | . . . . Terminals . | . . . . Fabricators . | . . . . Repair Stations . | . . . . Recycling Units . | . . . . Scanalyzers . | . . . . Garrison Access . | . . . . Data Cores Recovered . | . . . . Used . | . . . . Hacking Detections 2 | . 2 . . Full Trace Events . | . . . . Feedback Events . | . . . . Feedback Blocked . | . . . . Robot Schematics Acquired . | . . . . Robots Built . | . . . . Authchips . | . . . . Time . | . . . . Total Robot Build Rating . | . . . . Part Schematics Acquired . | . . . . Parts Built . | . . . . Authchips . | . . . . Time . | . . . . Total Part Build Rating . | . . . . Parts Repaired . | . . . . Time . | . . . . Parts Recycled . | . . . . Recycled Matter . | . . . . Retrieved Matter . | . . . . Retrieved Components . | . . . . Parts Scanalyzed . | . . . . Part Schematics Acquired . | . . . . Parts Damaged . | . . . . Bothacking | -11 -10 -10 -10 ------------ Run | Yrd Mat Min Sub Used RIF Installer . | . . . . Robots Hacked . | . . . . Non-combat . | . . . . Combat . | . . . . Robot Hacks Applied . | . . . . Relay Couplers Released . | . . . . Fabnet Peak Effective % . | . . . . Robots Rewired . | . . . . Allies Hacked . | . . . . Hacks Repelled . | . . . . Allies | -11 -10 -10 -10 -------- Run | Yrd Mat Min Sub Total Allies . | . . . . Largest Group . | . . . . Highest-Rated Group . | . . . . Highest-Rated Ally . | . . . . Total Orders . | . . . . Ally Attacks . | . . . . Total Damage . | . . . . Kills . | . . . . Allies Corrupted . | . . . . Allies Melted . | . . . . Intel | -11 -10 -10 -10 ------- Run | Yrd Mat Min Sub Active Infowar (turns) 1843 | 94 1671 78 . Seismic 1843 | 94 1671 78 . Robot Analysis Total 1 | . 1 . . Derelict Logs Recovered . | . . . . Drone Launches . | . . . . Drone Recoveries . | . . . . Exploration | -11 -10 -10 -10 ------------- Run | Yrd Mat Min Sub Turns Passed 2096 | 134 1671 89 202 Spaces Moved 1084 | 56 836 59 133 Core 25 | 5 . 20 . Treads 512 | 51 461 . . Legs 547 | . 375 39 133 Wheels . | . . . . Hover . | . . . . Flight . | . . . . Fastest Speed 50 | 50 120 50 120 Average Speed 161 | 150 169 142 120 Slowest Speed 190 | 160 190 190 120 Overloaded Moves . | . . . . Propulsion Burnouts . | . . . . Robots Hopped . | . . . . Potential Cave-ins . | . . . . Cave-ins Triggered . | . . . . Exploration Rate (%) 31 | 5 89 16 15 Regions Visited 3 Branch Regions 2 Pre-discovered Areas . | . . . . Known Exits Taken . | . . . . Unknown Exits Taken 3 | 1 1 1 . Scrap Searched . | . . . . Spaces Dug . | . . . . Terrain Destroyed . | . . . . Melee . | . . . . Projectile . | . . . . AOE . | . . . . Terrain Rammed . | . . . . Walls Destroyed . | . . . . Machines Disabled . | . . . . Actions | -11 -10 -10 -10 --------- Run | Yrd Mat Min Sub Total 1289 | 80 984 61 164 Wait 50 | . 34 . 16 Move 1081 | 55 835 58 133 Hop . | . . . . Pick Up 17 | 3 13 1 . Fast Attach 9 | 7 2 . . Attach 7 | . 2 . 5 Detach 1 | . 1 . . Swap 5 | . 5 . . Drop 13 | . 12 1 . Fire 103 | 15 78 1 9 Melee 1 | . . . 1 Ram . | . . . . Kick . | . . . . Crush 2 | . 2 . . Escape Stasis . | . . . . Rewire . | . . . . Trap . | . . . . Miscellaneous . | . . . . Route ------- -11/Scrapyard -10/Materials (discovered 5 exits: *Mat x3 / [*Min] / [*Sub]) -10/Mines -10/Subcaves History --------- Turn | Location | Event 9 | -11/Scrapyard | Discovered new exit (range 14) 135 | -11/Scrapyard | Entered Materials 307 | -10/Materials | Build established: Mutant 446 | -10/Materials | Discovered new exit (range 11) 501 | -10/Materials | Identified exit to Materials 920 | -10/Materials | Discovered new exit (range 10) 1772 | -10/Materials | Discovered new exit (range 11) 1806 | -10/Materials | Entered Mines 1849 | -10/Mines | Assembled infested the area 1883 | -10/Mines | Core integrity fell below 50% 1884 | -10/Mines | Released all parts (7) 1888 | -10/Mines | Discovered new exit (range 12) 1893 | -10/Mines | Core integrity fell below 20% 1895 | -10/Mines | Entered Subcaves 2097 | -10/Subcaves | Destroyed by UR-LRV(R) with Subdweller Laser Last Messages --------------- 01889_ as-44185 sneak attacks. 01889_ T-07 Excavator destroyed. LOCATION=UNKNOWN AMBIENT_HEAT=-10 GOAL=ESCAPE 01899_ Acquired 6 matter. 01904_ Acquired 8 matter. 01906_ CW-HFP(O) collects matter. 01907_ Acquired 13 matter. 01910_ System corrupted: Matter fused (-7). 01912_ CW-HFP(O) collects matter. 01944_ System corrupted: Matter fused (-5). 01957_ Y-45 Defender destroyed. 01963_ Acquired 28 matter. 01964_ System corrupted: Matter fused (-5). 01964_ Acquired 5 matter. 01971_ Subatomizers dissect the Lgt. Treads. 01973_ Lgt. Treads fries itself beyond repair. 02008_ 6K-P13(u) builds Twisted Machinery. 02095_ Ion Engine destroyed. Map ----- +----------------------------------------------------+ | ??????????????????????## #??????????????????? | | ???????????????????????# ######?????????????? | | ???????????????????????## ##" #####?????????? | | ????????????????????????## "" ##????????? | | ?????????????????????????# """" ####?????? | | ?????????????????????????# """" ## ##????? | | ??????????????????? ?????#########" #????? | | ???????????????# ??????????### " ##????? | | ???????????????# ?????????# " ###?????? | | ???????????????# ?????????# " ##??????? | | ??????????????## ?????????# " ##?????? | | ??????????????# ?????????##" #?????? | | ???????????????# ?????###### #?????? | | ???????????????# ????## ##?????? | | ????????????????? ?#### ####??????? | | ???????????????????# ## ##?????????? | | ???????????????????# ####??????????? | | ??????????????????## #?????????????? | | ??????????????????# ####??????????? | | ????????????????# # ## ##?????????? | | ????????????????# ??# ### ###???????? | | ?????????????????????# ###?# #???????? | | ????????????????????## #??# #??? | | ????????????????????# ### ## # #??? | | ????????????????????## ### ##??# #??? | | ????????????????????# @ #?## #????? # #?? | | ?????????????????#### ##??#######?????? # ?? | | ????????????????## #########?????????????? | | ????????????????# ?????????? | | ????????????????# ?????????? | | ????????????????###R ## ?????????? | | ????????????????? #?# ??????????? | | ????????????????#< ##?? ## ??????????? | | ??????????????? ##??? ##??????????????? | | ??????????????"##< ????? ##???????????????? | | ?????????????$?? ?????## #????????????????? | | ????????????#?? ??????? #????????????????? | | ??????????????# ??????? #????????????????? | | ??????????????## #???????? #????????????????? | | ???????????????## ?????????? ????????????????? | | ????????????????##????????????????????????????? | | ??????????????????????????????????????????????? | | ??????????????????????????????????????????????? | | ??????????????????????????????????????????????? | | ??????????????????????????????????????????????? | | ??????????????????????????????????????????????? | | ??????????????????????????????????????????????? | | ??????????????????????????????????????????????? | | ??????????????????????????????????????????????? | | ??????????????????????????????????????????????? | +----------------------------------------------------+ Best States ------------- Heat Dissipation 25 Energy Generation 10 Energy Capacity 250 Matter Stores 300 Matter Capacity 300 Sight Range 16 Terrain Scan Density 10 Evasion (%) 55 Recoil Reduction 2 Item Schematics ----------------- None Robot Schematics ------------------ None Fabricated ------------ Nothing Repaired ---------- Nothing Alien Tech Used ----------------- None Achievements -------------- None Challenges ------------ None Game ------ Seed FissionFieldRailcannon Manual? 0 Play Time 00:13:22 Cumulative 87.6 hours Start 2025.08.04 @ 20:02:26 End 2025.08.05 @ 21:21:40 Sessions 3 Manual Loads 0 Difficulty Rogue Special Mode None Game No. 115 Rogue 115 Adventurer 0 Explorer 0 Win Type - Total 1 Types 1/0/0/0/0/0/0/0/0/0 Lore% 46 Gallery% 44 Achievement% 41 Wizard Run 0 Options --------- Layout 2 ASCII 0 Keyboard 1 Movement Numpad Keybinds 0 Fullscreen 1 Font 32/Tamsyn Map View 50x44 Zoom Use 0% Tactical HUD 1 Map Filters NONE Filters NONE Steam 1 RUN: ff2bb8ff-7cd9-4e45-adbe-ec10594e457b